[Event "*** Titled Tuesday Blitz"]
[Site "Chess.com"]
[Date "2019.01.01"]
[Round "5"]
[White "LastGladiator1"]
[Black "pastouche06"]
[Result "1-0"]
[WhiteElo "2634"]
[BlackElo "2438"]
[TimeControl "180+2"]
[EndTime "14:10:42 PST"]
[Termination "LastGladiator1 won by resignation"]

1. d4 {[%clk 0:03:01.5]} 1... Nf6 {[%clk 0:03:00.5]} 2. c4 {[%clk 0:03:02.8]}
2... e6 {[%clk 0:03:00.9]} 3. Nc3 {[%clk 0:03:04.4]} 3... Bb4 {[%clk 0:03:01.5]}
4. Nf3 {[%clk 0:03:05.8]} 4... O-O {[%clk 0:03:01.7]} 5. g3 {[%clk 0:03:07.2]}
5... d5 {[%clk 0:02:59.2]} 6. Bg2 {[%clk 0:03:06.6]} 6... dxc4 {[%clk
0:02:58.9]} 7. O-O {[%clk 0:03:03.6]} 7... Nc6 {[%clk 0:02:59.5]} 8. Qa4 {[%clk
0:02:51.6]} 8... Nd5 {[%clk 0:02:07.6]} 9. Bg5 {[%clk 0:02:38.9]} 9... f6 {[%clk
0:02:00.6]} 10. Bd2 {[%clk 0:02:36.7]} 10... Nb6 {[%clk 0:01:59.4]} 11. Qc2
{[%clk 0:02:34.8]} 11... Nxd4 {[%clk 0:01:55]} 12. Nxd4 {[%clk 0:02:36.7]} 12...
Qxd4 {[%clk 0:01:56.5]} 13. Rfd1 {[%clk 0:02:36.8]} 13... Qc5 {[%clk 0:01:48.8]}
14. Ne4 {[%clk 0:02:22.5]} 14... Qe7 {[%clk 0:01:47.8]} 15. Be3 {[%clk
0:02:20.1]} 15... Nd5 {[%clk 0:01:43.2]} 16. Qxc4 {[%clk 0:02:19.4]} 16... Nxe3
{[%clk 0:01:43.5]} 17. fxe3 {[%clk 0:02:21.3]} 17... Kh8 {[%clk 0:01:24.4]} 18.
a3 {[%clk 0:02:21.2]} 18... Ba5 {[%clk 0:01:25.4]} 19. Nc5 {[%clk 0:02:18.6]}
19... Bb6 {[%clk 0:01:22.5]} 20. Rac1 {[%clk 0:02:15.7]} 20... c6 {[%clk
0:01:12.3]} 21. b4 {[%clk 0:02:15.3]} 21... e5 {[%clk 0:01:12.7]} 22. h3 {[%clk
0:02:12.4]} 22... Bf5 {[%clk 0:01:04.5]} 23. Kh2 {[%clk 0:02:09.6]} 23... Rad8
{[%clk 0:01:04.9]} 24. Rxd8 {[%clk 0:01:57]} 24... Rxd8 {[%clk 0:01:06.8]} 25.
a4 {[%clk 0:01:57.7]} 25... Rd2 {[%clk 0:00:48.6]} 26. a5 {[%clk 0:01:51.9]}
26... Bxc5 {[%clk 0:00:49.4]} 27. bxc5 {[%clk 0:01:53.8]} 27... h6 {[%clk
0:00:44.8]} 28. a6 {[%clk 0:01:53.6]} 28... bxa6 {[%clk 0:00:25.8]} 29. Bxc6
{[%clk 0:01:52.1]} 29... Qc7 {[%clk 0:00:23.1]} 30. Bg2 {[%clk 0:01:41.6]} 30...
a5 {[%clk 0:00:24.3]} 31. c6 {[%clk 0:01:20.2]} 31... h5 {[%clk 0:00:25.2]} 32.
Qh4 {[%clk 0:01:06.2]} 32... Bg6 {[%clk 0:00:25]} 33. Bf3 {[%clk 0:01:06.9]}
33... Kg8 {[%clk 0:00:20.4]} 34. Bxh5 {[%clk 0:01:01.8]} 34... Bf5 {[%clk
0:00:21.5]} 35. Bg4 {[%clk 0:00:59.1]} 35... Bxg4 {[%clk 0:00:05.5]} 36. Qxg4
{[%clk 0:01:01]} 36... Kf7 {[%clk 0:00:06.2]} 37. Qc4+ {[%clk 0:00:58.2]} 37...
Ke7 {[%clk 0:00:07]} 38. Rb1 {[%clk 0:00:58]} 38... Kd6 {[%clk 0:00:07.4]} 39.
Rc1 {[%clk 0:00:49.5]} 39... Rd5 {[%clk 0:00:08.1]} 40. e4 {[%clk 0:00:46.9]}
40... Rd4 {[%clk 0:00:09.2]} 41. Qg8 {[%clk 0:00:47.6]} 41... Rxe4 {[%clk
0:00:09.1]} 42. e3 {[%clk 0:00:42.6]} 42... Qb6 {[%clk 0:00:09.6]} 43. Rd1+
{[%clk 0:00:39]} 43... Kxc6 {[%clk 0:00:10.2]} 44. Qd5+ {[%clk 0:00:37.3]} 44...
Kc7 {[%clk 0:00:11.2]} 45. Rc1+ {[%clk 0:00:32.1]} 45... Kb8 {[%clk 0:00:11.5]}
1-0

[Event "*** Titled Tuesday Blitz"]
[Site "Chess.com"]
[Date "2019.01.01"]
[Round "5"]
[White "itisabigworld"]
[Black "Qingdom"]
[Result "1-0"]
[WhiteElo "2324"]
[BlackElo "2143"]
[TimeControl "180+2"]
[EndTime "14:10:44 PST"]
[Termination "itisabigworld won by resignation"]

1. b3 {[%clk 0:03:01.4]} 1... e5 {[%clk 0:02:58.9]} 2. Bb2 {[%clk 0:03:02.8]}
2... Nc6 {[%clk 0:02:59.9]} 3. e3 {[%clk 0:03:04.2]} 3... d5 {[%clk 0:03:00.3]}
4. Bb5 {[%clk 0:03:05.1]} 4... Bd6 {[%clk 0:02:59.2]} 5. Nf3 {[%clk 0:03:06]}
5... Qe7 {[%clk 0:02:59.3]} 6. d4 {[%clk 0:03:07.1]} 6... e4 {[%clk 0:02:57.2]}
7. Ne5 {[%clk 0:03:07.5]} 7... Bxe5 {[%clk 0:02:58]} 8. dxe5 {[%clk 0:03:09.4]}
8... Bd7 {[%clk 0:02:57.1]} 9. Qxd5 {[%clk 0:03:08.8]} 9... O-O-O {[%clk
0:02:53.6]} 10. Qxe4 {[%clk 0:03:08.6]} 10... Nf6 {[%clk 0:02:45.6]} 11. Qh4
{[%clk 0:02:55.8]} 11... Nxe5 {[%clk 0:02:42.6]} 12. Bxd7+ {[%clk 0:02:55.8]}
12... Rxd7 {[%clk 0:02:42.6]} 13. O-O {[%clk 0:02:53]} 13... Rhd8 {[%clk
0:02:31.1]} 14. Nc3 {[%clk 0:02:36.7]} 14... Qe6 {[%clk 0:02:26.1]} 15. Nb5
{[%clk 0:02:34.6]} 15... a6 {[%clk 0:02:11.4]} 16. Nd4 {[%clk 0:02:34.5]} 16...
Qb6 {[%clk 0:02:10]} 17. Nf5 {[%clk 0:02:18.6]} 17... Ng6 {[%clk 0:02:07.1]} 18.
Qh3 {[%clk 0:02:14.2]} 18... Kb8 {[%clk 0:02:01.9]} 19. Nxg7 {[%clk 0:02:13.5]}
19... Ne4 {[%clk 0:02:00.7]} 20. Bd4 {[%clk 0:02:10.9]} 20... Qc6 {[%clk
0:01:37.5]} 21. Nf5 {[%clk 0:02:08.5]} 21... Qxc2 {[%clk 0:01:30.7]} 22. Rac1
{[%clk 0:02:05]} 22... Qxa2 {[%clk 0:01:27.8]} 23. Ng3 {[%clk 0:02:00.9]} 23...
Ng5 {[%clk 0:01:14.4]} 24. Qf5 {[%clk 0:01:54.2]} 24... Ne6 {[%clk 0:01:15.4]}
25. Bf6 {[%clk 0:01:54.1]} 25... Rd5 {[%clk 0:01:02.4]} 26. Qe4 {[%clk
0:01:54.1]} 26... R8d7 {[%clk 0:01:01]} 27. h4 {[%clk 0:01:53.5]} 27... Ka7
{[%clk 0:00:28]} 28. h5 {[%clk 0:01:52.9]} 28... Ngf8 {[%clk 0:00:28.3]} 29. h6
{[%clk 0:01:42.2]} 29... Ng6 {[%clk 0:00:27.8]} 30. Nf5 {[%clk 0:01:35.6]} 30...
Qa5 {[%clk 0:00:26.3]} 31. Nd4 {[%clk 0:01:35.7]} 31... Nc5 {[%clk 0:00:24.1]}
32. Qb1 {[%clk 0:01:32.1]} 32... Qb6 {[%clk 0:00:22.5]} 33. b4 {[%clk
0:01:31.8]} 33... Ne6 {[%clk 0:00:20.7]} 34. b5 {[%clk 0:01:31.6]} 34... a5
{[%clk 0:00:21.2]} 35. Nxe6 {[%clk 0:01:28.8]} 35... Qxe6 {[%clk 0:00:22]} 36.
Bd4+ {[%clk 0:01:28.7]} 36... b6 {[%clk 0:00:23.2]} 37. Rc6 {[%clk 0:01:28.9]}
37... R5d6 {[%clk 0:00:23.7]} 38. Rfc1 {[%clk 0:01:28.1]} 38... Kb7 {[%clk
0:00:22.4]} 39. Qc2 {[%clk 0:01:26]} 39... Qe7 {[%clk 0:00:21.4]} 40. Qf5 {[%clk
0:01:04.2]} 40... Qd8 {[%clk 0:00:21.4]} 41. Qf3 {[%clk 0:01:04.2]} 41... Kb8
{[%clk 0:00:21.6]} 42. Rxd6 {[%clk 0:01:04.8]} 42... Rxd6 {[%clk 0:00:21.7]} 43.
Qxf7 {[%clk 0:01:05.4]} 43... Nh4 {[%clk 0:00:17.9]} 44. Qxh7 {[%clk 0:01:01.4]}
44... Rd7 {[%clk 0:00:17.4]} 45. Qe4 {[%clk 0:01:00.6]} 45... Rd6 {[%clk
0:00:15.2]} 46. h7 {[%clk 0:01:01.1]} 46... Rh6 {[%clk 0:00:15]} 47. Rc6 {[%clk
0:00:52.2]} 47... Rxc6 {[%clk 0:00:14.4]} 48. Qxc6 {[%clk 0:00:52.1]} 48... Ng6
{[%clk 0:00:13.5]} 49. Qxg6 {[%clk 0:00:52]} 1-0

[Event "*** Titled Tuesday Blitz"]
[Site "Chess.com"]
[Date "2019.01.01"]
[Round "5"]
[White "Gubajdullin"]
[Black "Chessmatus"]
[Result "0-1"]
[WhiteElo "2415"]
[BlackElo "2198"]
[TimeControl "180+2"]
[EndTime "14:10:51 PST"]
[Termination "Chessmatus won by checkmate"]

1. d4 {[%clk 0:03:01.2]} 1... Nf6 {[%clk 0:03:00.6]} 2. Bf4 {[%clk 0:03:02.1]}
2... e6 {[%clk 0:03:01.1]} 3. e3 {[%clk 0:03:03.2]} 3... c5 {[%clk 0:03:02.1]}
4. Nd2 {[%clk 0:03:02]} 4... d5 {[%clk 0:03:03]} 5. c3 {[%clk 0:03:03.1]} 5...
Nc6 {[%clk 0:03:03.7]} 6. Bd3 {[%clk 0:03:03]} 6... Bd6 {[%clk 0:03:00.6]} 7.
Bxd6 {[%clk 0:03:03.8]} 7... Qxd6 {[%clk 0:03:01.2]} 8. f4 {[%clk 0:03:04.8]}
8... cxd4 {[%clk 0:02:48.7]} 9. cxd4 {[%clk 0:03:04.9]} 9... Bd7 {[%clk
0:02:49.9]} 10. a3 {[%clk 0:03:04.7]} 10... a5 {[%clk 0:02:37.8]} 11. Ngf3
{[%clk 0:03:04.7]} 11... a4 {[%clk 0:02:37.1]} 12. O-O {[%clk 0:03:04.3]} 12...
O-O {[%clk 0:02:37.2]} 13. Ne5 {[%clk 0:03:04.5]} 13... Ne7 {[%clk 0:02:34.3]}
14. Rc1 {[%clk 0:02:57.6]} 14... Nf5 {[%clk 0:02:26.2]} 15. Qe2 {[%clk
0:02:51.4]} 15... Rfc8 {[%clk 0:02:20]} 16. Nxd7 {[%clk 0:02:40.7]} 16... Nxd7
{[%clk 0:02:19.8]} 17. Bb5 {[%clk 0:02:38.3]} 17... Nb6 {[%clk 0:02:17.6]} 18.
Nb1 {[%clk 0:02:26.7]} 18... Qe7 {[%clk 0:01:44.6]} 19. Rxc8+ {[%clk 0:02:23]}
19... Rxc8 {[%clk 0:01:40]} 20. g4 {[%clk 0:02:22.5]} 20... Nd6 {[%clk
0:01:40.3]} 21. Bd3 {[%clk 0:02:17.5]} 21... Ndc4 {[%clk 0:01:20]} 22. g5 {[%clk
0:02:16.4]} 22... g6 {[%clk 0:01:07.9]} 23. h4 {[%clk 0:02:16.1]} 23... Qd7
{[%clk 0:01:06.4]} 24. h5 {[%clk 0:02:16.8]} 24... Qb5 {[%clk 0:01:07.4]} 25.
Rf2 {[%clk 0:02:15.7]} 25... Qb3 {[%clk 0:01:03.9]} 26. hxg6 {[%clk 0:01:48.3]}
26... hxg6 {[%clk 0:01:04.5]} 27. Kg2 {[%clk 0:01:10.9]} 27... Nxb2 {[%clk
0:00:32.2]} 28. Qxb2 {[%clk 0:01:10.3]} 28... Qxd3 {[%clk 0:00:33.3]} 29. Qxb6
{[%clk 0:01:10.7]} 29... Qe4+ {[%clk 0:00:34.5]} 30. Kg3 {[%clk 0:01:03.5]}
30... Qxe3+ {[%clk 0:00:33.9]} 31. Kg2 {[%clk 0:01:04.3]} 31... Qe4+ {[%clk
0:00:34.6]} 32. Kg3 {[%clk 0:01:05.1]} 32... Qe3+ {[%clk 0:00:32]} 33. Kg2
{[%clk 0:01:00.9]} 33... Qe4+ {[%clk 0:00:33]} 34. Rf3 {[%clk 0:00:45]} 34...
Rc2+ {[%clk 0:00:23.8]} 35. Kg3 {[%clk 0:00:45.7]} 35... Qe1+ {[%clk 0:00:24.7]}
36. Kh3 {[%clk 0:00:38.6]} 36... Qh1+ {[%clk 0:00:14.9]} 37. Kg4 {[%clk
0:00:39.4]} 37... Qg2+ {[%clk 0:00:14.8]} 38. Rg3 {[%clk 0:00:35.9]} 38... Qe2+
{[%clk 0:00:15.8]} 39. Rf3 {[%clk 0:00:31.9]} 39... Rc1 {[%clk 0:00:15.4]} 40.
Qd8+ {[%clk 0:00:12.5]} 40... Kh7 {[%clk 0:00:16.4]} 41. f5 {[%clk 0:00:08.1]}
41... Rg1+ {[%clk 0:00:15.1]} 42. Kf4 {[%clk 0:00:06.8]} 42... Qe4# {[%clk
0:00:15.8]} 0-1

[Event "*** Titled Tuesday Blitz"]
[Site "Chess.com"]
[Date "2019.01.01"]
[Round "5"]
[White "PulpanJ"]
[Black "Bigfish1995"]
[Result "0-1"]
[WhiteElo "2617"]
[BlackElo "2913"]
[TimeControl "180+2"]
[EndTime "14:10:57 PST"]
[Termination "Bigfish1995 won by resignation"]

1. e4 {[%clk 0:02:57.3]} 1... c6 {[%clk 0:02:59]} 2. d3 {[%clk 0:02:51.1]} 2...
d5 {[%clk 0:02:59.8]} 3. Nd2 {[%clk 0:02:53]} 3... g6 {[%clk 0:03:00.8]} 4. Ngf3
{[%clk 0:02:53.4]} 4... Bg7 {[%clk 0:03:01.8]} 5. d4 {[%clk 0:02:54.6]} 5... Nh6
{[%clk 0:02:56.7]} 6. h3 {[%clk 0:02:44.5]} 6... O-O {[%clk 0:02:55.5]} 7. c3
{[%clk 0:02:44.4]} 7... Nd7 {[%clk 0:02:28.2]} 8. Bd3 {[%clk 0:02:39]} 8... e6
{[%clk 0:02:26.2]} 9. O-O {[%clk 0:02:38.9]} 9... f6 {[%clk 0:02:13]} 10. Re1
{[%clk 0:02:36.6]} 10... Nf7 {[%clk 0:02:11.8]} 11. a4 {[%clk 0:02:30.5]} 11...
a5 {[%clk 0:02:10.4]} 12. b4 {[%clk 0:01:36.7]} 12... axb4 {[%clk 0:02:01.2]}
13. cxb4 {[%clk 0:01:37.9]} 13... dxe4 {[%clk 0:02:00.2]} 14. Nxe4 {[%clk
0:01:39.8]} 14... Nb6 {[%clk 0:01:46.4]} 15. Nc5 {[%clk 0:01:33.9]} 15... Re8
{[%clk 0:01:38.2]} 16. b5 {[%clk 0:01:11.9]} 16... cxb5 {[%clk 0:01:17.9]} 17.
Bxb5 {[%clk 0:01:12.8]} 17... Re7 {[%clk 0:01:19]} 18. Ba3 {[%clk 0:00:57.7]}
18... Nd5 {[%clk 0:01:15.4]} 19. Qb3 {[%clk 0:00:36.4]} 19... b6 {[%clk
0:00:46]} 20. Nd3 {[%clk 0:00:19]} 20... Rc7 {[%clk 0:00:44.6]} 21. Rac1 {[%clk
0:00:18.2]} 21... Raa7 {[%clk 0:00:43]} 22. Rxc7 {[%clk 0:00:13.3]} 22... Rxc7
{[%clk 0:00:42.5]} 23. Rc1 {[%clk 0:00:15.2]} 23... Rxc1+ {[%clk 0:00:41.6]} 24.
Bxc1 {[%clk 0:00:17.1]} 24... Qc7 {[%clk 0:00:40.8]} 25. Bd2 {[%clk 0:00:18.6]}
25... Nd6 {[%clk 0:00:37.4]} 26. Nb4 {[%clk 0:00:12.2]} 26... Bb7 {[%clk
0:00:33.8]} 27. Be2 {[%clk 0:00:09.4]} 27... Nf5 {[%clk 0:00:30.7]} 28. Bc4
{[%clk 0:00:06.8]} 28... Nfe7 {[%clk 0:00:27.9]} 29. Ne1 {[%clk 0:00:06.8]}
29... Kf7 {[%clk 0:00:20.1]} 30. Ned3 {[%clk 0:00:07.8]} 30... Qd6 {[%clk
0:00:20.4]} 31. Kf1 {[%clk 0:00:06.4]} 31... Nc7 {[%clk 0:00:18.1]} 32. Be3
{[%clk 0:00:06.8]} 32... g5 {[%clk 0:00:18.1]} 33. Qc2 {[%clk 0:00:05.3]} 33...
Nf5 {[%clk 0:00:19.1]} 34. Qe2 {[%clk 0:00:03.4]} 34... Kg8 {[%clk 0:00:18.6]}
35. Qh5 {[%clk 0:00:03.8]} 35... Qd7 {[%clk 0:00:19.7]} 36. Qe2 {[%clk
0:00:04.3]} 36... Qxa4 {[%clk 0:00:20.4]} 37. g4 {[%clk 0:00:04.5]} 37... Nh4
{[%clk 0:00:20.1]} 38. Bd2 {[%clk 0:00:04.7]} 38... Qa1+ {[%clk 0:00:19.7]} 39.
Be1 {[%clk 0:00:05.6]} 39... Bg2+ {[%clk 0:00:20.2]} 40. Kg1 {[%clk 0:00:06.6]}
40... Bf3 {[%clk 0:00:19.4]} 41. Bxe6+ {[%clk 0:00:06.5]} 41... Kh8 {[%clk
0:00:20.4]} 42. Qe3 {[%clk 0:00:07.1]} 42... Ng2 {[%clk 0:00:20.3]} 43. Qxf3
{[%clk 0:00:07.3]} 43... Nxe1 {[%clk 0:00:21.7]} 44. Qe2 {[%clk 0:00:03.6]}
44... Nxd3+ {[%clk 0:00:22.4]} 45. Kg2 {[%clk 0:00:04.2]} 45... Nf4+ {[%clk
0:00:23.7]} 46. Kh2 {[%clk 0:00:04.9]} 0-1

[Event "*** Titled Tuesday Blitz"]
[Site "Chess.com"]
[Date "2019.01.01"]
[Round "5"]
[White "NemtsevIgor"]
[Black "NCchamp"]
[Result "1/2-1/2"]
[WhiteElo "2302"]
[BlackElo "2197"]
[TimeControl "180+2"]
[EndTime "14:11:03 PST"]
[Termination "Game drawn by agreement"]

1. d4 {[%clk 0:03:01.9]} 1... Nf6 {[%clk 0:02:57.7]} 2. Bf4 {[%clk 0:03:02.2]}
2... d6 {[%clk 0:02:58.1]} 3. Nf3 {[%clk 0:03:03]} 3... g6 {[%clk 0:02:59.3]} 4.
e3 {[%clk 0:03:03.8]} 4... Bg7 {[%clk 0:03:00.6]} 5. Be2 {[%clk 0:03:05.1]} 5...
O-O {[%clk 0:03:01.3]} 6. O-O {[%clk 0:03:06.3]} 6... Nbd7 {[%clk 0:03:02.4]} 7.
h3 {[%clk 0:03:06.4]} 7... c5 {[%clk 0:03:03.7]} 8. c3 {[%clk 0:03:06.8]} 8...
b6 {[%clk 0:03:04.7]} 9. a4 {[%clk 0:03:06]} 9... a6 {[%clk 0:03:04.9]} 10. Na3
{[%clk 0:03:07.2]} 10... Bb7 {[%clk 0:03:05.1]} 11. Nc4 {[%clk 0:03:06.7]} 11...
b5 {[%clk 0:02:41.2]} 12. Ncd2 {[%clk 0:02:56.9]} 12... b4 {[%clk 0:02:36.4]}
13. a5 {[%clk 0:02:53.3]} 13... bxc3 {[%clk 0:02:36.5]} 14. bxc3 {[%clk
0:02:54]} 14... Nd5 {[%clk 0:02:37.7]} 15. Qb3 {[%clk 0:02:35.1]} 15... Nxf4
{[%clk 0:02:22.9]} 16. exf4 {[%clk 0:02:33.6]} 16... Qc7 {[%clk 0:02:19.2]} 17.
Nc4 {[%clk 0:02:10.8]} 17... Rab8 {[%clk 0:02:04.2]} 18. Nb6 {[%clk 0:01:47.5]}
18... Bxf3 {[%clk 0:01:54.3]} 19. Bxf3 {[%clk 0:01:47.8]} 19... Nxb6 {[%clk
0:01:37.8]} 20. axb6 {[%clk 0:01:43]} 20... Rxb6 {[%clk 0:01:39.7]} 21. Qc4
{[%clk 0:01:35.9]} 21... Rc8 {[%clk 0:01:08.8]} 22. Rxa6 {[%clk 0:01:11.8]}
22... Rxa6 {[%clk 0:01:09.4]} 23. Qxa6 {[%clk 0:01:12.8]} 23... cxd4 {[%clk
0:01:10.6]} 24. cxd4 {[%clk 0:01:13.5]} 24... Bxd4 {[%clk 0:01:10.7]} 25. f5
{[%clk 0:01:13.1]} 25... gxf5 {[%clk 0:01:02.8]} 26. Qd3 {[%clk 0:01:11.2]}
26... Qc5 {[%clk 0:01:00.2]} 27. Rb1 {[%clk 0:01:01.4]} 27... Bxf2+ {[%clk
0:00:59.7]} 28. Kh1 {[%clk 0:01:00.1]} 28... Qe3 {[%clk 0:00:48.7]} 29. Qf1
{[%clk 0:00:43.5]} 29... e6 {[%clk 0:00:36.4]} 30. Rd1 {[%clk 0:00:36.7]} 30...
d5 {[%clk 0:00:34.3]} 31. Rd3 {[%clk 0:00:36.7]} 31... Rc1 {[%clk 0:00:31.9]}
32. Bd1 {[%clk 0:00:37.2]} 32... Qe1 {[%clk 0:00:26.3]} 33. Qxe1 {[%clk
0:00:28.8]} 33... Bxe1 {[%clk 0:00:28.2]} 34. g4 {[%clk 0:00:30.2]} 34... fxg4
{[%clk 0:00:27.3]} 35. hxg4 {[%clk 0:00:30.8]} 35... Bg3 {[%clk 0:00:22]} 36.
Kg2 {[%clk 0:00:29.9]} 36... Be5 {[%clk 0:00:21.6]} 37. g5 {[%clk 0:00:27.7]}
37... Rc3 {[%clk 0:00:21.7]} 38. Rxc3 {[%clk 0:00:20.9]} 38... Bxc3 {[%clk
0:00:23.6]} 39. Kf3 {[%clk 0:00:22.1]} 39... Kg7 {[%clk 0:00:24.5]} 40. Kg4
{[%clk 0:00:23.4]} 40... Bd2 {[%clk 0:00:25.5]} 41. Bc2 {[%clk 0:00:24.5]} 41...
Be3 {[%clk 0:00:26]} 42. Bd3 {[%clk 0:00:25.5]} 42... d4 {[%clk 0:00:27.2]} 43.
Be4 {[%clk 0:00:26.2]} 43... e5 {[%clk 0:00:27.4]} 44. Kf5 {[%clk 0:00:27]}
44... Kf8 {[%clk 0:00:23.8]} 45. Kxe5 {[%clk 0:00:27.9]} 45... Bxg5 {[%clk
0:00:20.9]} 46. Kxd4 {[%clk 0:00:29.1]} 46... h5 {[%clk 0:00:21.3]} 47. Kd3
{[%clk 0:00:30.2]} 47... Kg7 {[%clk 0:00:22.7]} 48. Ke2 {[%clk 0:00:31.4]} 48...
Kf6 {[%clk 0:00:24.3]} 49. Kf3 {[%clk 0:00:31.9]} 49... Ke5 {[%clk 0:00:25.4]}
50. Bb7 {[%clk 0:00:32.1]} 50... f5 {[%clk 0:00:25.8]} 51. Bc8 {[%clk
0:00:30.9]} 51... h4 {[%clk 0:00:26.4]} 52. Bxf5 {[%clk 0:00:30.9]} 52... Kxf5
{[%clk 0:00:25.2]} 53. Kg2 {[%clk 0:00:32]} 1/2-1/2

[Event "*** Titled Tuesday Blitz"]
[Site "Chess.com"]
[Date "2019.01.01"]
[Round "5"]
[White "gmjlh"]
[Black "matiss90"]
[Result "1-0"]
[WhiteElo "2650"]
[BlackElo "2440"]
[TimeControl "180+2"]
[EndTime "14:11:10 PST"]
[Termination "gmjlh won by checkmate"]

1. e4 {[%clk 0:03:01.9]} 1... c5 {[%clk 0:03:00.6]} 2. Nf3 {[%clk 0:03:02.9]}
2... d6 {[%clk 0:03:01.3]} 3. Bd3 {[%clk 0:03:00.3]} 3... Nc6 {[%clk 0:03:00.7]}
4. O-O {[%clk 0:03:01.1]} 4... Nf6 {[%clk 0:03:01.8]} 5. b3 {[%clk 0:03:01.1]}
5... g6 {[%clk 0:03:03.1]} 6. Bb2 {[%clk 0:03:01.8]} 6... Bg7 {[%clk 0:03:04.3]}
7. Nc3 {[%clk 0:03:02.2]} 7... O-O {[%clk 0:03:05.4]} 8. h3 {[%clk 0:02:59]}
8... e5 {[%clk 0:03:06.3]} 9. Bc4 {[%clk 0:02:49.8]} 9... Nh5 {[%clk 0:03:05.3]}
10. Nd5 {[%clk 0:02:41.3]} 10... Ne7 {[%clk 0:03:03.8]} 11. b4 {[%clk 0:01:59]}
11... b6 {[%clk 0:02:22.6]} 12. a4 {[%clk 0:01:49.4]} 12... Nxd5 {[%clk
0:02:20]} 13. Bxd5 {[%clk 0:01:50.1]} 13... Rb8 {[%clk 0:02:21]} 14. b5 {[%clk
0:01:42.6]} 14... Nf4 {[%clk 0:02:20.3]} 15. Bc4 {[%clk 0:01:43.3]} 15... Kh8
{[%clk 0:02:20.3]} 16. a5 {[%clk 0:01:30.4]} 16... f5 {[%clk 0:02:20.2]} 17.
axb6 {[%clk 0:01:28.5]} 17... axb6 {[%clk 0:02:09.3]} 18. exf5 {[%clk
0:01:27.7]} 18... Bxf5 {[%clk 0:02:09.8]} 19. Ra7 {[%clk 0:01:25]} 19... Qf6
{[%clk 0:01:25.9]} 20. Re1 {[%clk 0:01:07.4]} 20... Rbe8 {[%clk 0:01:25.9]} 21.
Bf1 {[%clk 0:01:01]} 21... g5 {[%clk 0:01:22.3]} 22. Nh2 {[%clk 0:00:47.1]}
22... Bxc2 {[%clk 0:00:48.9]} 23. Qxc2 {[%clk 0:00:29.1]} 23... Nxh3+ {[%clk
0:00:49.5]} 24. gxh3 {[%clk 0:00:30.7]} 24... Qxf2+ {[%clk 0:00:50.2]} 25. Kh1
{[%clk 0:00:32]} 25... Qxe1 {[%clk 0:00:51.3]} 26. Qd3 {[%clk 0:00:25.4]} 26...
d5 {[%clk 0:00:37.5]} 27. Qe2 {[%clk 0:00:08.8]} 27... Qg3 {[%clk 0:00:30.9]}
28. Qg2 {[%clk 0:00:04.7]} 28... Qf4 {[%clk 0:00:09.3]} 29. Qxd5 {[%clk
0:00:05.6]} 29... Rd8 {[%clk 0:00:07.3]} 30. Qb7 {[%clk 0:00:06.8]} 30... Rg8
{[%clk 0:00:07.3]} 31. Bc3 {[%clk 0:00:08.2]} 31... Qf6 {[%clk 0:00:05.1]} 32.
Qe4 {[%clk 0:00:09.1]} 32... Qf4 {[%clk 0:00:05.3]} 33. Bd3 {[%clk 0:00:09.7]}
33... Qxe4+ {[%clk 0:00:06]} 34. Bxe4 {[%clk 0:00:11.6]} 34... Rgf8 {[%clk
0:00:05.4]} 35. Ng4 {[%clk 0:00:08]} 35... Rde8 {[%clk 0:00:04.1]} 36. Kg2
{[%clk 0:00:07.6]} 36... h5 {[%clk 0:00:04.8]} 37. Ne3 {[%clk 0:00:08.3]} 37...
Rf4 {[%clk 0:00:04.6]} 38. d3 {[%clk 0:00:09.7]} 38... Ref8 {[%clk 0:00:05.2]}
39. Be1 {[%clk 0:00:09.7]} 39... h4 {[%clk 0:00:04]} 40. Ng4 {[%clk 0:00:08.7]}
40... Rc8 {[%clk 0:00:04.3]} 41. Bd2 {[%clk 0:00:08.8]} 41... Rff8 {[%clk
0:00:04.3]} 42. Bxg5 {[%clk 0:00:10]} 42... c4 {[%clk 0:00:05.5]} 43. Bh6 {[%clk
0:00:09.9]} 43... Bxh6 {[%clk 0:00:04.5]} 44. Rh7+ {[%clk 0:00:10.2]} 44... Kg8
{[%clk 0:00:05.6]} 45. Nxh6# {[%clk 0:00:12.1]} 1-0